Cogmind - Beta 14 @@@ ROGUE MODE // 2024.11.16 @ 16:38:41 Player: Fangrelle Result: Destroyed by G-47 Trooper with Particle Gun Performance ------------- Evolutions (3) 1500 Regions Visited (6) 1200 Robots Destroyed (137) 685 Value Destroyed (4077) 4077 Prototype IDs (26) 520 Alien Tech Used (0) 0 Bonus (1000) 1000 TOTAL SCORE: 8982 Bonus ------- High Alert Combat Kills 700 Aligned with FarCom 300 Cogmind --------- Core Integrity 0/700 Matter 49/300 Energy 75/310 System Corruption 3% Temperature Cool (24) Movement Flying (755) Ox9 Location -7/Factory Parts ------- > --- POWER (1) -------- Heavy Deuterium Engine > --- PROPULSION (4) --- VTOL Module > --- UTILITY (6) ------ Large Storage Unit Machine Analyzer Modified TNC Advanced ECM Suite > --- WEAPON (2) ------- Greatsword > --- INVENTORY (15) --- Improved Trap Extractor (0/6) Assault Cannon Remote Datajack Makeshift Spear Peak State ------------ > --- POWER ------------ Heavy Deuterium Engine > --- PROPULSION ------- Armored Huge Wheel Armored Huge Wheel > --- UTILITY ---------- Humpback Weapon Cycler Weapon Cycler Heavy Armor Plating > --- WEAPON ----------- Assault Cannon Assault Cannon > --- INVENTORY -------- Heavy Deuterium Engine Heavy Deuterium Engine Armored Huge Wheel Armored Huge Wheel Gravmag System Improved Heat Sink Improved Heat Sink Improved Heat Sink Improved Heat Sink High-capacity Storage Unit Humpback High-capacity Matter Pod High-capacity Matter Pod Advanced Visual Processing Unit Modified TNC Improved Targeting Computer Heavy Armor Plating Heavy Armor Plating Heavy Armor Plating Improved Trap Extractor Heavy EM Shotgun Heavy EM Shotgun Assault Cannon Assault Cannon Gauss Cannon Mini Grenade Launcher Remote Datajack Remote Datajack Makeshift Spear [Rating: 54] Favorites ----------- Power Deuterium Engine Engine Deuterium Engine Power Core Micro Nuclear Core Propulsion Light Treads Treads Light Treads Leg Improved Carbon-fiber Leg Wheel Armored Huge Wheel Hover Unit Gravmag System Flight Unit VTOL Module Utility Improved Heat Sink Device Improved Heat Sink Storage Humpback Processor Improved Targeting Computer Protection Heavy Armor Plating Weapon Assault Cannon Energy Gun Heavy EM Shotgun Ballistic Gun Assault Rifle Ballistic Cannon Assault Cannon Launcher Shock Bomb Launcher Special Weapon Plasma Cutter Slashing Weapon Greatsword Piercing Weapon Makeshift Spear Special Melee Weapon Datajack Build | -11 -10 -10 -10 -9 -8 -7 ------- Run | Yrd Mat Min Exi Min Mat Fac Slots Evolved 6 | . . . . . 4 2 Power . | . . . . . . . Propulsion 2 | . . . . . 2 . Utility 4 | . . . . . 2 2 Weapon . | . . . . . . . Parts Attached 111 | . 14 3 2 4 32 56 Power 9 | . 2 2 . . 3 2 Engine 7 | . 1 2 . . 3 1 Core 2 | . 1 . . . . 1 Reactor . | . . . . . . . Propulsion 19 | . 3 . . 1 7 8 Treads 5 | . 3 . . 1 . 1 Leg 5 | . . . . . 5 . Wheel 4 | . . . . . 2 2 Hover 4 | . . . . . . 4 Flight 1 | . . . . . . 1 Utility 43 | . 3 . 1 . 10 29 Device 21 | . 2 . . . 2 17 Storage 7 | . 1 . 1 . 2 3 Processor 6 | . . . . . . 6 Hackware . | . . . . . . . Protection 9 | . . . . . 6 3 Artifact . | . . . . . . . Weapon 40 | . 6 1 1 3 12 17 Energy Gun 7 | . 1 . . . 2 4 Energy Cannon . | . . . . . . . Ballistic Gun 9 | . 5 . . 2 2 . Ballistic Cannon 10 | . . . . . 4 6 Launcher 5 | . . . . 1 3 1 Special Weapon 1 | . . . . . . 1 Impact Weapon . | . . . . . . . Slashing Weapon 4 | . . . . . . 4 Piercing Weapon 3 | . . 1 . . 1 1 Special Melee Weapon 1 | . . . 1 . . . Unidentified Prototypes 3 | . . . . . 3 . Parts Lost 38 | . 5 . . 2 9 22 Power 5 | . 2 . . . 1 2 Propulsion 9 | . 1 . . 1 1 6 Utility 11 | . . . . . 3 8 Weapon 13 | . 2 . . 1 4 6 Highest Loss Streak 8 | . 2 . . 2 4 8 To Critical Strikes 1 | . . . . . . 1 Average Slot Usage (%) 80 | . 92 100 88 84 68 68 Engine 10 | . 13 14 14 14 8 5 Treads 15 | . 26 28 28 27 4 . Leg 3 | . . . . . 14 . Wheel 4 | . . . . . 3 12 Device 8 | . 8 14 3 . 5 12 Storage 11 | . 14 14 13 14 9 8 Protection 2 | . . . . . 7 4 Energy Gun 1 | . 1 . . . . 3 Ballistic Gun 7 | . 25 20 . 4 2 . Ballistic Cannon 3 | . . . . . 7 8 Launcher 1 | . . . . 4 6 . Piercing Weapon 4 | . . 7 14 9 . . Special Melee Weapon 3 | . . . 14 9 . . Peak Build Rating 54 | 6 9 16 17 17 45 54 Average Rating 26 | 6 7 13 15 15 30 48 On Entrance 16 | 6 6 9 16 16 14 45 Naked Turns . | . . . . . . . Heaviest Build 421 | 12 49 54 212 214 236 421 Greatest Support 72 | 20 40 40 40 40 72 56 Greatest Overweight (x) 21 | . 1 1 5 10 21 7 Average Overweight (x) 2 | . . 1 3 5 4 2 Largest Inventory Capacity 35 | 8 20 20 35 35 35 35 Average Capacity 28 | 8 14 20 30 35 35 31 Most Carried 35 | 6 9 16 24 25 35 35 Average Carried 20 | 6 6 14 20 24 25 26 Final Capacity 35 | 8 20 20 35 35 35 15 Final Carried 32 | 6 9 16 24 23 32 4 Class Distribution -------------------- 64% | Hauler-Mutant 19% | Scavenger-Mutant 16% | Mutant Dominant Class ---------------- Scavenger-Mutant | -10/Materials Mutant | -10/Mines Hauler-Mutant | -10/Exiles Hauler-Mutant | -9/Mines Hauler-Mutant | -8/Materials Hauler-Mutant | -7/Factory Resources | -11 -10 -10 -10 -9 -8 -7 ----------- Run | Yrd Mat Min Exi Min Mat Fac Matter Collected 2976 | 200 314 30 30 103 971 1328 Remotely . | . . . . . . . Salvage Created 3890 | . 623 230 . 200 1092 1745 Parts 247 | . 50 21 . 8 68 100 Haulers Intercepted 2 | . 1 . . . 1 . Recyclers Shooed 1 | . 1 . . . . . Parts Field Recycled . | . . . . . . . Retrieved Matter . | . . . . . . . Parts Self-Destructed . | . . . . . . . Prevented . | . . . . . . . Kills | -11 -10 -10 -10 -9 -8 -7 ------- Run | Yrd Mat Min Exi Min Mat Fac Combat Hostiles Destroyed 86 | . 14 2 . 4 28 38 Melee 12 | . . 2 . . . 10 Guns 18 | . 14 . . . 1 3 Cannons 33 | . . . . . 16 17 AOE 22 | . . . . 4 10 8 Classes Destroyed 14 | . 6 2 . . 2 4 Worker 13 | . 3 4 . 1 1 4 Builder 12 | . . 2 . . 6 4 Tunneler 1 | . . 1 . . . . Hauler 2 | . 1 . . . 1 . Recycler 11 | . 1 . . 1 3 6 Mechanic 4 | . . . . . . 4 Watcher 8 | . 2 . . . 4 2 Swarmer 24 | . 5 . . . 10 9 Grunt 51 | . 9 2 . 4 13 23 Brawler 1 | . . . . . . 1 Duelist 1 | . . . . . . 1 Sentry 4 | . . . . . 4 . Hunter 1 | . . . . . 1 . Programmer 4 | . . . . . . 4 Best Kill Streak 8 | . 5 3 . 4 8 8 Combat Bots Only 5 | . 5 2 . 4 5 4 Max Kills in Single Turn 5 | . 1 1 . 2 5 4 Gunslinging . | . . . . . . . Exploded 3 | . . . . 2 3 2 Melee 1 | . . 1 . . . 1 Uniques/NPCs Destroyed . | . . . . . . . Combat | -11 -10 -10 -10 -9 -8 -7 -------- Run | Yrd Mat Min Exi Min Mat Fac Hostile Shots Fired 686 | . 89 9 . 31 215 342 Missed 194 | . 27 2 . 7 64 94 Damage Taken 7857 | . 703 132 . 313 2371 4338 Core 1122 | . 46 57 . 21 298 700 Absorbed by Shields . | . . . . . . . Core Remaining (%) 65 | 100 . . . 50 45 . Volleys Fired 281 | . 68 . . 4 104 105 Largest 2 | . 2 . . 2 2 2 Hottest 100 | . 60 . . 50 88 100 Shots Fired 503 | . 124 . . 8 171 200 Gun 178 | . 124 . . 5 20 29 Cannon 288 | . . . . . 121 167 Launcher 37 | . . . . 3 30 4 Special . | . . . . . . . Kinetic 425 | . 112 . . 5 141 167 Thermal . | . . . . . . . Explosive 20 | . . . . 3 13 4 Electromagnetic 58 | . 12 . . . 17 29 Robot Hit Streak 14 | . 9 . . 7 14 11 Robot Miss Streak 8 | . 5 . . . 5 8 Penetration Max . | . . . . . . . Secondary Targets 3 | . 3 . . . . . Max Gunslinging Chain 1 | . 1 . . . . . Shots Hit Robots 320 | . 73 9 . 5 103 130 Core Hits 206 | . 36 4 . 8 69 89 Critical Kills 2 | . 2 . . . . . Critical Parts Destroyed . | . . . . . . . Critical Strikes 15 | . 2 4 . . 3 6 Destroy 2 | . 2 . . . . . Blast 9 | . . . . . 3 6 Impale 4 | . . 4 . . . . Melee Attacks 43 | . . 10 . . . 33 Impact . | . . . . . . . Slashing 27 | . . . . . . 27 Piercing 16 | . . 10 . . . 6 Sneak Attacks 11 | . . 7 . . . 4 Combat Hostiles . | . . . . . . . Follow-up Attacks . | . . . . . . . Damage Inflicted 11653 | . 852 470 . 358 3517 6456 Guns 1393 | . 788 . . 36 130 439 Cannons 3993 | . . . . . 1744 2249 Explosions 4374 | . 45 . . 322 1633 2374 Melee 1770 | . . 470 . . . 1300 Ramming 123 | . 19 . . . 10 94 Kinetic 4825 | . 666 . . 36 1874 2249 Thermal 1084 | . 45 . . . 120 919 Explosive 2595 | . . . . 322 818 1455 Electromagnetic 1256 | . 122 . . . 695 439 Impact . | . . . . . . . Slashing 1300 | . . . . . . 1300 Piercing 470 | . . 470 . . . . Highest Corruption 6 | . . . . . 1 6 Average Corruption 2 | . . . . . 1 3 Corruption Purged 5 | . . . . . . 5 Corruption Blocked . | . . . . . . . Effects 58 | . . . . . 11 47 Message Errors 17 | . . . . . 4 13 Matter Fused 12 | . . . . . 2 10 Heat Flow Errors 7 | . . . . . . 7 Energy Discharges 7 | . . . . . . 7 Parts Fused 2 | . . . . . . 2 Data Loss (minor) 3 | . . . . . 2 1 Data Loss (major) 4 | . . . . . 1 3 Misfires 3 | . . . . . . 3 Alerts 1 | . . . . . . 1 Weapon Failures 2 | . . . . . 2 . Overload Shots . | . . . . . . . Overflow Damage 624 | . . 226 . . 58 340 Projectiles 63 | . . . . . 5 58 Explosions 116 | . . . . . 53 63 Melee 445 | . . 226 . . . 219 Knockbacks 38 | . . . . . 12 26 Impact 2 | . . . . . . 2 Kinetic 34 | . . . . . 11 23 Secondary 2 | . . . . . 1 1 Self-Inflicted Damage 625 | . 15 . . 53 242 315 Shots 23 | . 1 . . 2 15 5 Rammed 6 | . 1 . . . . 5 Targets Rammed 8 | . 2 . . . 1 5 Kicked 1 | . . . . . 1 . Crushed 1 | . 1 . . . . . Highest Temperature 436 | . 58 . . 14 436 429 Average Temperature 137 | . 21 . . 6 151 148 Received Heat Transfer 2943 | . 366 57 . 144 972 1404 Effects 15 | . . . . . 4 11 Shutdowns 2 | . . . . . 1 1 Interference 4 | . . . . . 1 3 Matter Decay 1 | . . . . . 1 . Short Circuit 2 | . . . . . 1 1 Damage (minor) 2 | . . . . . . 2 Damage (major) 4 | . . . . . . 4 Siege Activations . | . . . . . . . Robots Corrupted 1 | . . . . . 1 . Combat Hostiles 1 | . . . . . 1 . Parts Fried 3 | . . . . . 2 1 Impact Corruptions . | . . . . . . . Robots Melted . | . . . . . . . Combat Hostiles . | . . . . . . . Parts Melted . | . . . . . . . Heat Transferred 1050 | . 50 . . . 100 900 Parts Sabotaged . | . . . . . . . Parts Stolen . | . . . . . . . Parts Stripped . | . . . . . . . Power Chain Reactions 9 | . 1 . . . 4 4 Alert | -11 -10 -10 -10 -9 -8 -7 ------- Run | Yrd Mat Min Exi Min Mat Fac Peak Influence 1198 | . 294 73 . 129 502 1198 Initial 228 | . . 15 . . 50 228 Average 286 | . 116 23 . 37 155 701 Maximum Alert Level 4 | . 1 . . . 2 4 Low Security (%) 57 | 100 75 100 . 100 74 . Level 1 13 | . 24 . . . 14 16 Level 2 12 | . . . . . 10 31 Level 3 12 | . . . . . . 39 Level 4 3 | . . . . . . 12 Level 5 . | . . . . . . . High Security . | . . . . . . . Max Security . | . . . . . . . Squads Dispatched 22 | . 3 . . . 6 13 Investigation 8 | . 3 . . . 2 3 Extermination 2 | . . . . . . 2 Reinforcement 6 | . . . . . 4 2 Assault 4 | . . . . . . 4 Garrison 2 | . . . . . . 2 Intercept . | . . . . . . . Searches Triggered . | . . . . . . . Construction Impeded 4 | . . . . . 3 1 Haulers Reinforced . | . . . . . . . Active Scanning Responses . | . . . . . . . Cargo Convoy Interrupts . | . . . . . . . Stealth | -11 -10 -10 -10 -9 -8 -7 --------- Run | Yrd Mat Min Exi Min Mat Fac Distress Signals 5 | . 3 . . . 1 1 Communications Jammed . | . . . . . . . Distress Signals . | . . . . . . . Times Spotted 133 | . 25 2 . 5 34 67 Peak Tracking Total 7 | . 7 2 . 4 4 7 Tactical Retreats 8 | . 2 . . 1 2 3 Traps | -11 -10 -10 -10 -9 -8 -7 ------- Run | Yrd Mat Min Exi Min Mat Fac Traps Triggered 3 | . 1 . . . 1 1 Indirectly . | . . . . . . . Trap Hack Attempts . | . . . . . . . Triggered . | . . . . . . . Disarmed . | . . . . . . . Reprogrammed . | . . . . . . . Reused . | . . . . . . . Traps Extracted . | . . . . . . . Installed . | . . . . . . . Triggered . | . . . . . . . Machines | -11 -10 -10 -10 -9 -8 -7 ---------- Run | Yrd Mat Min Exi Min Mat Fac Machines Disabled 34 | . 2 . . 1 1 30 Max in Single Turn 6 | . 1 . . 1 1 6 Garrison Access 1 | . . . . . . 1 Machines Repaired . | . . . . . . . Machines Dismantled 1 | . . . . . . 1 Machines Sabotaged . | . . . . . . . Overloaded Fab Kills . | . . . . . . . Hacking | -11 -10 -10 -10 -9 -8 -7 --------- Run | Yrd Mat Min Exi Min Mat Fac Machines Accessed 24 | . 9 1 2 . 4 8 Terminals 13 | . 7 . . . 2 4 Fabricators 2 | . . . . . . 2 Repair Stations 1 | . . . . . . 1 Recycling Units 3 | . 2 . . . 1 . Scanalyzers 2 | . . . . . 1 1 Garrison Access . | . . . . . . . Total Hacks 76 | . 34 1 5 . 12 24 Successful 39 | . 14 1 5 . 4 15 Failed 37 | . 20 . . . 8 9 Catastrophic 2 | . . . . . 1 1 Database Lockouts . | . . . . . . . Manual 45 | . 26 . 1 . 6 12 Terminals 50 | . 29 . . . 7 14 Fabricators 5 | . . . . . . 5 Repair Stations 1 | . . . . . . 1 Recycling Units 8 | . 5 . . . 3 . Scanalyzers 6 | . . . . . 2 4 Garrison Access . | . . . . . . . Terminal Hacks 13 | . 3 1 5 . 1 3 Record 4 | . . . 4 . . . Open Door 1 | . . 1 . . . . Open DSF 1 | . . . . . . 1 Branch Access Points 1 | . . . . . 1 . Alert Level 1 | . . . . . . 1 Unreport Threat 1 | . . . . . . 1 Surveillance Status 1 | . 1 . . . . . Recall Investigation 2 | . 2 . . . . . Derelict Proto ID Bank 1 | . . . 1 . . . Fabricator Hacks 3 | . . . . . . 3 Load Schematic 1 | . . . . . . 1 Build 2 | . . . . . . 2 Repair Station Hacks . | . . . . . . . Recycling Unit Hacks 1 | . 1 . . . . . Report Inventory 1 | . 1 . . . . . Scanalyzer 6 | . . . . . 2 4 Insert Component 3 | . . . . . 1 2 Analyze 3 | . . . . . 1 2 Garrison Access Hacks . | . . . . . . . Unauthorized Hacks 16 | . 10 . . . 1 5 Terminals 14 | . 8 . . . 1 5 Assimilate 2 | . 2 . . . . . Botnet 9 | . 5 . . . 1 3 Operators 2 | . 1 . . . . 1 Skim 1 | . . . . . . 1 Fabricators . | . . . . . . . Repair Stations . | . . . . . . . Recycling Units 2 | . 2 . . . . . Tunnel 2 | . 2 . . . . . Scanalyzers . | . . . . . . . Garrison Access . | . . . . . . . Data Cores Recovered . | . . . . . . . Used . | . . . . . . . Hacking Detections 19 | . 8 . . . 4 7 Full Trace Events 5 | . 1 . . . 2 2 Feedback Events . | . . . . . . . Feedback Blocked . | . . . . . . . Robot Schematics Acquired . | . . . . . . . Robots Built . | . . . . . . . Authchips . | . . . . . . . Time . | . . . . . . . Total Robot Build Rating . | . . . . . . . Part Schematics Acquired 2 | . . . . . 1 1 Parts Built 2 | . . . . . . 2 Authchips . | . . . . . . . Time 168 | . . . . . . 168 Total Part Build Rating 8 | . . . . . . 8 Parts Repaired . | . . . . . . . Time . | . . . . . . . Parts Recycled . | . . . . . . . Recycled Matter . | . . . . . . . Retrieved Matter . | . . . . . . . Retrieved Components . | . . . . . . . Parts Scanalyzed 3 | . . . . . 1 2 Part Schematics Acquired 2 | . . . . . 1 1 Parts Damaged . | . . . . . . . Bothacking | -11 -10 -10 -10 -9 -8 -7 ------------ Run | Yrd Mat Min Exi Min Mat Fac Used RIF Installer . | . . . . . . . Robots Hacked . | . . . . . . . Non-combat . | . . . . . . . Combat . | . . . . . . . Robot Hacks Applied . | . . . . . . . Relay Couplers Released 1 | . . . . . . 1 Machine Destruction 1 | . . . . . . 1 Fabnet Peak Effective % . | . . . . . . . Robots Rewired . | . . . . . . . Allies Hacked . | . . . . . . . Hacks Repelled . | . . . . . . . Allies | -11 -10 -10 -10 -9 -8 -7 -------- Run | Yrd Mat Min Exi Min Mat Fac Total Allies 4 | . 1 3 . . . . Largest Group 4 | . 1 4 2 2 . . Highest-Rated Group 50 | . 10 50 26 26 . . Highest-Rated Ally 16 | . 10 16 16 16 . . Total Orders . | . . . . . . . Ally Attacks 5 | . . . . 5 . . Total Damage 29 | . . . . 29 . . Kills . | . . . . . . . Allies Corrupted . | . . . . . . . Allies Melted . | . . . . . . . Intel | -11 -10 -10 -10 -9 -8 -7 ------- Run | Yrd Mat Min Exi Min Mat Fac Robot Analysis Total . | . . . . . . . Derelict Logs Recovered 4 | . . 1 . 3 . . Drone Launches . | . . . . . . . Drone Recoveries . | . . . . . . . Exploration | -11 -10 -10 -10 -9 -8 -7 ------------- Run | Yrd Mat Min Exi Min Mat Fac Turns Passed 10112 | 8 1555 1182 1689 778 2307 2593 Spaces Moved 3414 | 7 638 470 411 136 500 1252 Core . | . . . . . . . Treads 1739 | . 638 470 411 136 83 1 Legs 221 | 7 . . . . 214 . Wheels 1085 | . . . . . 203 882 Hover 369 | . . . . . . 369 Flight . | . . . . . . . Fastest Speed 48 | 120 160 240 160 560 145 48 Average Speed 246 | 120 203 240 405 562 382 132 Slowest Speed 1590 | 120 240 240 560 960 1590 240 Overloaded Moves . | . . . . . . . Propulsion Burnouts . | . . . . . . . Robots Hopped . | . . . . . . . Cave-ins Triggered . | . . . . . . . Exploration Rate (%) 48 | 2 92 80 69 26 47 22 Regions Visited 6 Branch Regions 3 Pre-discovered Areas 4 | . 2 . 1 1 . . Known Exits Taken 2 | . . . 1 . 1 . Unknown Exits Taken 4 | 1 1 1 . 1 . . Scrap Searched 2 | . . 1 . 1 . . Spaces Dug 28 | . . . . . 12 16 Terrain Destroyed 295 | . . . . 25 117 153 Melee 4 | . . . . . . 4 Projectile 29 | . . . . . 21 8 AOE 262 | . . . . 25 96 141 Terrain Rammed . | . . . . . . . Walls Destroyed . | . . . . . . . Machines Disabled . | . . . . . . . Actions | -11 -10 -10 -10 -9 -8 -7 --------- Run | Yrd Mat Min Exi Min Mat Fac Total 4566 | 6 782 511 443 144 732 1948 Wait 513 | . 45 18 . . 34 416 Move 3408 | 6 637 469 410 135 499 1252 Hop . | . . . . . . . Pick Up 105 | . 9 8 21 1 28 38 Fast Attach 30 | . 4 . 1 . 13 12 Attach 57 | . 2 . . 2 16 37 Detach 15 | . . . 1 . 5 9 Swap 24 | . 8 3 1 2 3 7 Drop 78 | . 7 3 9 . 29 30 Fire 281 | . 68 . . 4 104 105 Melee 43 | . . 10 . . . 33 Ram 5 | . . . . . . 5 Kick 1 | . . . . . 1 . Crush 2 | . 2 . . . . . Escape Stasis . | . . . . . . . Rewire . | . . . . . . . Trap . | . . . . . . . Miscellaneous 4 | . . . . . . 4 Route ------- -11/Scrapyard -10/Materials (discovered 4 exits: [*Mat x3] / *Min) -10/Mines (discovered 4 exits: [*Mat x2] / *Exi / [*Sub]) -10/Exiles (discovered 2 exits: *Min x2) -9/Mines -8/Materials (discovered 3 exits: *Fac x3) -7/Factory History --------- Turn | Location | Event 1 | -11/Scrapyard | Discovered new exit (range 3) 9 | -11/Scrapyard | Entered Materials 297 | -10/Materials | Discovered new exit (range 9) 312 | -10/Materials | Build established: Mutant 518 | -10/Materials | Discovered new exit (range 16) 919 | -10/Materials | Build established: Scavenger-Mutant 943 | -10/Materials | Discovered new exit (range 13) 1349 | -10/Materials | Discovered new exit (range 16) 1564 | -10/Materials | Entered Mines 1564 | -10/Mines | Accompanied by 1 ally 1647 | -10/Mines | Joined a pair of Derelicts in attacking an 0b10 outpost 1776 | -10/Mines | Assisted by bots powering up and referring to "LRC-V3" 1903 | -10/Mines | A weapon hastily lodged in a ceiling crevice suddenly fell to the ground 1977 | -10/Mines | Met a Derelict who couldn't figure out how to use a Trap Extractor 2309 | -10/Mines | Build established: Mutant 2376 | -10/Mines | Discovered new exit (range 13) 2470 | -10/Mines | Deemed a non-threat by the Exiles lab entrance 2473 | -10/Mines | Discovered new exit (range 5) 2538 | -10/Mines | Discovered new exit (range 8) 2616 | -10/Mines | Discovered new exit (range 5) 2746 | -10/Mines | Entered Exiles 2746 | -10/Exiles | Accompanied by 2 allies 2747 | -10/Exiles | Identified exit to Mines 2818 | -10/Exiles | Met 8R-AWN 2852 | -10/Exiles | Met EX-HEX 2945 | -10/Exiles | Met EX-DEC 3518 | -10/Exiles | Build established: Hauler-Mutant 3538 | -10/Exiles | Learned location of Zion (-7) 3634 | -10/Exiles | Met EX-BIN 3712 | -10/Exiles | Aligned with FarCom system 3718 | -10/Exiles | Given EX-Vault access code 3846 | -10/Exiles | Opened EX-Vault 3874 | -10/Exiles | Found Modified TNC 3982 | -10/Exiles | Warned to stay clear of 0b10 Research branches 4435 | -10/Exiles | Left Exiles lab with Modified TNC 4435 | -10/Exiles | Entered Mines 4435 | -9/Mines | Accompanied by 2 allies 4452 | -9/Mines | Discovered new exit (range 16) 4463 | -9/Mines | Learned location of 1 exit from Materials 4772 | -9/Mines | Learned 2 Materials zone layouts 4875 | -9/Mines | Excavation squad dispatched 4875 | -9/Mines | A large section of the Mines collapsed 5213 | -9/Mines | Entered Materials 5213 | -8/Materials | Evolved 4 slots: Propulsion x2, Utility x2 5214 | -8/Materials | Identified exit to Factory 5391 | -8/Materials | Lost 3 parts (1n2w) 5620 | -8/Materials | Lost 4 parts (1p1u2w) 6126 | -8/Materials | Discovered exit to Factory (range 10) 7116 | -8/Materials | Core integrity fell below 50% 7520 | -8/Materials | Entered Factory 7520 | -7/Factory | Evolved 2 slots: Utility x2 8561 | -7/Factory | Fabricated Greatsword (x2) 8678 | -7/Factory | Garrison activated, responded to threat 8720 | -7/Factory | First assault squad dispatched 8837 | -7/Factory | Lost 4 parts (2u2w) 9499 | -7/Factory | Lost 3 parts (2u1w) 9715 | -7/Factory | Lost 3 parts (1p1n1u) 10010 | -7/Factory | Core integrity fell below 50% 10027 | -7/Factory | Build established: Scavenger-Mutant 10106 | -7/Factory | Core integrity fell below 20% 10113 | -7/Factory | Destroyed by G-47 Trooper with Particle Gun Last Messages --------------- 10085_ L-41 Fighter unfolds itself. 10085_ M-28 Smith unfolds itself. 10092_ Imp. Heat Sink destroyed. 10096_ S-27 Virus destroyed. 10096_ Greatsword destroyed. 10097_ Mic. Nuclear Core destroyed. 10101_ BC>EZ=E=B2V8J2KIOV 10107_ Acquired VTOL Module. 10108_ K-01 Serf cleans the Subcomponent Replicator. 10108_ Assault Cannon destroyed. 10108_ M-28 Smith repairs L-41 Fighter. 10108_ S-27 Virus knocked back. 10109_ K-01 Serf collects debris. 10109_ Assault Cannon severed. 10110_ Critical hit (Burn: +37). 10113_ K-01 Serf collects debris. Map ----- +----------------------------------------------------+ | ???????????????????????????????????# #??? | | ???????????????????????????????????# #### | | ???????????????????????????????????# ]]] | | ???????????????????????????????????# ] | | | ???????????????????????????????????# !] | | ???????????????????????????????????# | | ???????????????????????????????????# | | ???????????????????????????????????#########+##### | | ??????????????????????????????????????# #?# | | ??????????????????????????????????????#! """" #?# | | ??????????????????????????????????????# """" #?# | | ??????????????????????????????????????# """"=#?# | | ??????????????????????????????????????# """"*#?# | | ??????????????????????????????????????#! "|""%#?# | | ??????????????????????????????????????# "*#?# | | ??????????????????????????????????????# !==#?# | | ??????????????????????????????????????# =[%#?# | | ??????????????????????????????????????##########?# | | ?????????????????????????????????????????????????# | | ?????????????????????????????????????????????????# | | ???????????????????????????????????????????????### | | ??????????##### ################################ | | ????????? ^ k *! | | ????????? gg% % | | ????????? ^g*%""" | | ????????? ml@""" | | ????????? k ^ =""" | | ?????????? s "" u | | ?????????? kg"" tg g | | ???????????#####+####### % ############+#### | | ????????????""""???????# """ #?# #### | | ????????????""F"???"""?# """ !#?# # | | ????????????""?????"""?# """ #?# # | | ???????????????????"""?# "" #?# # | | ???????????????????????# "" #?# # | | ???????????????"""?"""?# #?# # | | ???????????????"""?"""?# """ #?# # | | ???????????????"""?"""?# """ ??# # | | ???????????????????????? """ ??# # | | ???????????????????????? ?"" ??# # " | | ???????????????????????? ?"" ??# # S" | | ?????????????????????????????????# # "" | | ?????????????????????????????????############## | | ??????????????????????????????????????????????#### | | ?????????????????????????????????????????????????? | | ?????????????????????????????????????????????????? | | ?????????????????????????????????????????????????? | | ?????????????????????????????????????????????????? | | ?????????????????????????????????????????????????? | | ?????????????????????????????????????????????????? | +----------------------------------------------------+ Best States ------------- Heat Dissipation 76 Energy Generation 18 Energy Capacity 310 Matter Stores 300 Matter Capacity 300 Sight Range 20 Terrain Scan Density 10 ECM Strength 2 Armor Coverage 600 Weapon Cycling 30 Evasion (%) 55 Targeting Accuracy 6 Core Analysis 6 Recoil Reduction 2 Item Schematics ----------------- Mak. Spear | -8/Materials | Scanalyzed Adv. ECM Suite | -7/Factory | Scanalyzed Robot Schematics ------------------ None Fabricated ------------ Greatsword | x2 | -7/Factory | Preloaded Alien Tech Used ----------------- None Achievements -------------- None Challenges ------------ None Game ------ Seed FrostFieldDetonator Manual? 0 Play Time 00:55:48 Cumulative 93.0 hours Start 2024.11.16 @ 15:42:30 End 2024.11.16 @ 16:38:41 Sessions 1 Manual Loads 0 Difficulty Rogue Special Mode None Game No. 163 Rogue 163 Adventurer 0 Explorer 0 Win Type - Total 0 Types 0/0/0/0/0/0/0/0/0 Lore% 42 Gallery% 37 Achievement% 34 Wizard Run 0 Options --------- Layout 0 ASCII 0 Keyboard 0 Movement Mouse Keybinds 0 Fullscreen 1 Font 24/Cog Map View 91x25 Zoom Use 82% Tactical HUD 1 Map Filters NONE Filters NONE Steam 1 RUN: c995d6d2-f971-424b-94e5-7779d9601ebf